bitfinex-derivatives/quotes_ETHF0:USTF0_20250321
["timestamp","ask_amount","ask_price","bid_price","bid_amount"]
[1742588895122,5.64613,1975.8,1975.7,1.3793]
[1742588895322,6.30193,1975.8,1975.7,1.3793]
[1742588895523,6.98243,1975.8,1975.7,1.3793]
[1742588896930,6.98243,1975.8,1975.7,2.39198]
[1742588897228,6.98243,1975.8,1975.7,1.3793]
[1742588897431,6.30193,1975.8,1975.7,2.39198]
[1742588897626,5.64613,1975.8,1975.7,2.39198]
[1742588898825,4.23263,1975.8,1975.7,2.39198]
[1742588899026,5.59933,1975.8,1975.7,2.39198]
[1742588904235,3.22,1975.8,1975.7,2.39198]
[1742588904436,1.01759983,1975.9,1975.8,1.01263]
[1742588904638,0.00499983,1975.9,1975.8,1.68843]
[1742588905535,47.83242,1976.2,1976.1,1.01247]
[1742588905733,4.23142,1976.3,1976.2,1.01242]
[1742588906038,5.60742,1976.3,1976.2,1.01242]
[1742588906237,5.60737,1976.3,1976.2,1.01242]
[1742588906637,5.60737,1976.3,1976.2,2.95072]
[1742588907442,2.38837,1976.3,1976.2,2.95072]
[1742588909041,5.59617,1976.3,1976.2,1.2776]
[1742588911736,5.59617,1976.3,1976.2,2.29002]
[1742588914448,1.01233,1976.4,1976.3,1.01237]
[1742588914646,2.29673,1976.4,1976.3,3.65867]
[1742588915146,1.0123,1976.5,1976.4,1.01227]
[1742588915346,5.51566,1976.6,1976.5,1.01227]
[1742588917742,8.72346,1976.6,1976.5,1.01227]
[1742588917943,5.51566,1976.6,1976.5,1.01227]
[1742588921159,2.29666,1976.6,1976.5,1.01227]
[1742588921351,1.01226,1976.6,1976.5,1.01227]
[1742588921744,2.41986,1976.6,1976.5,1.01227]
[1742588928157,1.4076,1976.6,1976.4,1.3182]
[1742588928358,2.36127,1976.5,1976.4,1.3182]
[1742588928667,46.801,1977.2,1976.4,12.9082]
[1742588928864,50.56535,1978.4,1976.4,12.9082]
[1742588928865,3.9133,1977.4,1977.3,1.01186]
[1742588929158,6.4258,1977.5,1977.4,1.01181]
[1742588929356,3.2078,1977.5,1977.4,1.01181]
[1742588929865,7.7972,1977.5,1977.4,1.01181]
[1742588930253,8.80896,1977.5,1977.4,1.01181]
[1742588930655,7.7972,1977.5,1977.4,1.01181]
[1742588931058,8.80896,1977.5,1977.4,1.01181]
[1742588931358,7.7972,1977.5,1977.4,1.01181]
[1742588932163,8.80896,1977.5,1977.4,1.01181]
[1742588932763,7.43756,1977.5,1977.4,1.01181]
[1742588935864,4.22976,1977.5,1977.4,1.01181]
[1742588936065,7.43756,1977.5,1977.4,1.01181]
[1742588940668,1.01181,1977.4,1977.3,1.3388]
[1742588940871,3.02361,1977.4,1977.3,1.3388]
[1742588941062,3.69471,1977.4,1977.3,1.3388]
[1742588941573,3.69471,1977.4,1977.3,2.35066]
[1742588941967,3.69471,1977.4,1977.3,1.3388]
[1742588942169,3.69471,1977.4,1977.3,2.35066]
[1742588944981,3.69471,1977.4,1977.3,1.3388]
[1742588945384,3.69471,1977.4,1977.3,2.35066]
[1742588945584,3.69471,1977.4,1977.3,1.3388]
[1742588945782,3.69471,1977.4,1977.3,2.35066]
[1742588946085,3.69471,1977.4,1977.3,1.3388]
[1742588948282,3.69471,1977.4,1977.3,2.35066]
[1742588948581,3.69471,1977.4,1977.3,1.3388]
[1742588951091,3.69471,1977.4,1977.3,2.35066]
[1742588951287,2.33611,1977.4,1977.3,2.35066]
[1742588951987,2.33611,1977.4,1977.3,1.3388]
[1742588952390,2.33611,1977.4,1977.3,2.35066]
[1742588952983,2.33611,1977.4,1977.3,1.3388]
[1742588954387,3.2078,1978.0,1977.3,7.2108]
[1742588954579,3.216,1978.0,1977.6,2.52917]
[1742588954780,1.01159,1977.9,1977.8,1.0116]
[1742588954982,1.01159,1977.9,1977.8,1.01155]
[1742588955485,1.01159,1977.9,1977.8,2.37645]
[1742588956779,1.01159,1977.9,1977.8,1.3649]
[1742588956981,1.01159,1977.9,1977.8,2.3765]
[1742588957185,1.01155,1978.0,1977.9,1.01152]
[1742588957386,7.43529,1978.1,1978.0,1.0115]
[1742588957592,1.01155,1978.0,1977.9,1.01151]
[1742588958689,1.01155,1977.9,1977.8,2.37646]
[1742588961698,2.39425,1978.0,1977.9,1.01155]
[1742588961900,1.01155,1978.0,1977.9,2.40955]
[1742588965901,6.4238,1978.1,1978.0,1.0115]
[1742588966197,6.4238,1978.1,1978.0,3.0927]
[1742588967199,7.43525,1978.1,1978.0,3.0927]
[1742588968395,3.2078,1978.1,1978.0,3.0927]
[1742588968601,4.6206,1978.3,1978.2,1.0114]
[1742588969101,7.8284,1978.3,1978.2,2.3549]
[1742588970302,8.8398,1978.3,1978.2,2.3549]
[1742588972302,8.8398,1978.3,1978.2,1.3435]
[1742588972911,8.8398,1978.3,1978.2,2.3549]
[1742588973599,8.8398,1978.3,1978.2,1.3435]
[1742588974699,1.01155,1978.0,1977.9,1.01149]
[1742588975000,1.01155,1978.0,1977.9,2.41119]
[1742588976102,1.01155,1978.0,1977.9,3.77859]
[1742588976802,1.01155,1978.0,1977.9,2.0613]
[1742588977003,3.10495,1978.0,1977.9,1.3674]
[1742588977201,2.7327,1978.0,1977.4,3.2078]
[1742588977419,1.01171,1977.6,1977.5,1.3674]
[1742588977897,3.78811,1977.6,1977.5,1.3674]
[1742588978098,1.01181,1977.4,1977.3,1.01184]
[1742588978295,4.21961,1977.4,1977.3,1.3582]
[1742588978500,5.62281,1977.4,1977.3,1.3582]
[1742588982206,2.41501,1977.4,1977.3,1.3582]
[1742588982404,49.9628,1977.7,1977.4,1.01176]
[1742588982703,4.559,1977.6,1977.3,1.01182]
[1742588982909,1.344,1977.5,1977.3,1.01182]
[1742588983112,1.01181,1977.4,1977.3,1.01182]
[1742588983302,2.3558,1977.5,1977.4,1.01181]
[1742588983910,2.3558,1977.5,1977.3,1.01182]
[1742588984111,4.5518,1977.5,1977.3,1.01182]
[1742588984414,1.3667,1977.4,1977.3,1.01182]
[1742588985212,2.37851,1977.4,1977.3,1.01182]
[1742588985411,4.21957,1977.5,1977.4,1.01181]
[1742588985608,5.58627,1977.5,1977.4,1.01181]
[1742588986112,5.58627,1977.5,1977.3,1.01182]
[1742588987719,1.01181,1977.4,1977.3,1.01182]
[1742588987913,3.2078,1977.5,1977.2,0.67489763]
[1742588988319,4.21958,1977.5,1977.2,0.67489763]
[1742588988614,4.21958,1977.5,1977.3,1.01182]
[1742588988917,1.01181,1977.4,1977.3,1.01186]
[1742588989820,3.2078,1977.5,1977.3,1.01186]
[1742588990021,1.01181,1977.4,1977.3,1.01186]
[1742588990715,1.01186,1977.3,1977.2,1.68676763]
[1742588992122,2.34245,1977.4,1977.3,1.01186]
[1742588992424,1.01186,1977.3,1977.2,1.68677763]
[1742588992622,2.34246,1977.3,1977.2,0.00759763]
[1742588993013,1.01196,1977.1,1977.0,5.872]
[1742588993215,1.01201,1977.0,1976.9,0.6782]
[1742588993414,2.38201,1977.0,1976.9,0.6782]
[1742588993615,2.38201,1977.0,1976.9,1.69026]
[1742588996619,2.38201,1977.0,1976.9,0.6782]
[1742588998526,5.59801,1977.0,1976.9,0.6782]
[1742588999822,5.59801,1977.0,1976.9,1.69026]
[1742589000526,5.59801,1977.0,1976.9,3.00526]
[1742589000727,5.59801,1977.0,1976.9,1.9932]
[1742589001933,5.59801,1977.0,1976.9,3.00526]
[1742589003331,5.59801,1977.0,1976.9,1.9932]
[1742589003636,5.59801,1977.0,1976.9,3.00526]
[1742589004727,5.59801,1977.0,1976.9,1.9932]
[1742589005732,5.59801,1977.0,1976.9,3.00526]
[1742589006125,5.59801,1977.0,1976.9,1.9932]
[1742589006635,5.59801,1977.0,1976.9,3.00526]
[1742589010936,0.00759763,1977.1,1977.0,1.01201]
[1742589011236,0.00759763,1977.1,1977.0,2.41841]
[1742589011633,1.01955763,1977.1,1977.0,2.41841]
[1742589011839,0.00759763,1977.1,1977.0,2.41841]
[1742589013334,1.01955763,1977.1,1977.0,2.41841]
[1742589013833,2.37095763,1977.1,1977.0,2.41841]
[1742589014938,5.57875763,1977.1,1977.0,2.41841]
[1742589017234,2.37095763,1977.1,1977.0,2.41841]
[1742589018647,5.57875763,1977.1,1977.0,2.41841]
[1742589018839,2.37095763,1977.1,1977.0,2.41841]
[1742589023141,0.00759763,1977.1,1977.0,5.62621]
[1742589026152,1.01955763,1977.1,1977.0,2.41841]
[1742589026352,1.31859763,1977.1,1977.0,2.41841]
[1742589027251,2.33055763,1977.1,1977.0,2.41841]
[1742589027449,1.31859763,1977.1,1977.0,2.41841]
[1742589027645,0.00759763,1977.1,1977.0,2.41841]
[1742589027854,1.01955763,1977.1,1977.0,2.41841]
[1742589028254,2.33055763,1977.1,1977.0,1.4064]
[1742589028451,3.03145763,1977.1,1977.0,1.4064]
[1742589032455,0.00759763,1977.1,1977.0,2.41841]
[1742589032655,2.31941782,1977.5,1977.0,7.2784]
[1742589032856,4.6064,1977.5,1977.4,1.01181]
[1742589033056,4.6146,1977.5,1977.4,1.01181]
[1742589033358,5.62636,1977.5,1977.4,1.01181]
[1742589033551,5.62636,1977.5,1977.3,1.01182]
[1742589033752,1.01186,1977.3,1977.2,1.01188]
[1742589034149,3.78395,1977.4,1977.2,1.01188]
[1742589034349,1.3986,1977.3,1977.2,1.01188]
[1742589035250,2.41046,1977.3,1977.2,1.01188]
[1742589035450,1.3986,1977.3,1977.2,1.01188]
[1742589036157,2.41046,1977.3,1977.2,1.67368]
[1742589036357,2.41046,1977.3,1977.2,0.6618]
[1742589038258,2.41046,1977.3,1977.2,1.67371]
[1742589039155,2.41046,1977.3,1977.2,0.6618]
[1742589039346,8.83426,1977.3,1977.2,0.6618]
[1742589039551,1.01191,1977.2,1977.1,0.6597]
[1742589039751,2.30561,1977.2,1977.1,0.6597]
[1742589042262,1.01196,1977.1,1977.0,6.5128]
[1742589042457,2.41486,1977.1,1977.0,0.6408]
[1742589042962,2.41486,1977.1,1977.0,1.65281]
[1742589043862,1.01196,1977.1,1977.0,1.65281]
[1742589045058,4.22796,1977.1,1977.0,0.6408]
[1742589045265,1.01201,1977.0,1976.9,0.6576]
[1742589045459,1.01201,1977.0,1976.8,1.01967763]
[1742589045460,1.01206,1976.9,1976.8,0.00759763]
[1742589045756,7.43586,1976.9,1976.8,0.00759763]
[1742589046152,8.74786,1976.9,1976.8,0.00759763]
[1742589052069,8.74786,1976.9,1976.8,1.40449763]
[1742589052267,8.74786,1976.9,1976.8,2.74029763]
[1742589053866,5.54006,1976.9,1976.8,2.74029763]
[1742589054571,1.01206,1976.9,1976.8,3.75241763]
[1742589054866,3.216,1976.9,1976.8,3.75241763]
[1742589055771,4.22806,1976.9,1976.8,3.75241763]
[1742589056166,3.216,1976.9,1976.8,3.75241763]
[1742589058770,4.22806,1976.9,1976.8,3.75241763]
[1742589060975,3.216,1976.9,1976.8,3.75241763]
[1742589061473,4.22806,1976.9,1976.8,3.75241763]
[1742589061774,4.22802,1977.1,1977.0,1.01201]
[1742589062275,3.216,1977.1,1977.0,2.38921]
[1742589062970,4.22796,1977.1,1977.0,2.38921]
[1742589065474,3.216,1977.1,1977.0,2.38921]
[1742589066267,1.01183,1977.5,1977.4,1.01181]
[1742589066572,7.4355,1977.7,1977.6,1.01171]
[1742589067280,7.4355,1977.7,1977.6,2.39941]
[1742589067480,7.4355,1977.7,1977.6,1.3877]
[1742589067870,8.0837,1977.7,1977.6,1.3877]
[1742589068470,7.4355,1977.7,1977.6,2.39941]
[1742589068973,7.4355,1977.7,1977.6,1.3877]
[1742589069581,7.4355,1977.7,1977.6,2.39941]
[1742589071277,1.3843,1977.8,1977.6,1.3877]
[1742589071278,3.215,1977.8,1977.6,1.3877]
[1742589071487,2.31455,1978.0,1977.9,1.01155]
[1742589071780,5.52955,1978.0,1977.9,1.01155]
[1742589072167,5.52955,1978.0,1977.9,3.00015]
[1742589073175,2.31455,1978.0,1977.9,3.00015]
[1742589073376,5.52955,1978.0,1977.9,3.00015]
[1742589073577,3.215,1978.0,1977.9,3.00015]
[1742589073778,50.99529,1978.1,1978.0,1.0115]
[1742589073976,54.21029,1978.1,1978.0,2.3373]
[1742589075783,4.21929,1978.1,1978.0,2.3373]
[1742589076390,5.55159,1978.1,1978.0,2.3373]
[1742589077790,2.34379,1978.1,1978.0,2.3373]
[1742589081181,5.55159,1978.1,1978.0,1.3258]
[1742589084092,5.55159,1978.1,1978.0,2.3373]
[1742589084987,5.55159,1978.1,1978.0,1.3258]
[1742589085287,5.55159,1978.1,1978.0,2.3373]
[1742589085787,2.34379,1978.1,1978.0,2.3373]
[1742589086291,5.55159,1978.1,1978.0,1.3258]
[1742589087489,5.55159,1978.1,1978.0,2.3373]
[1742589089393,5.55159,1978.1,1978.0,1.3258]
[1742589089591,5.55159,1978.1,1978.0,2.3373]
[1742589089592,2.34379,1978.1,1978.0,2.3373]
[1742589089787,4.21915,1978.3,1978.2,1.0114]
[1742589090093,5.60655,1978.3,1978.2,1.0114]
[1742589090288,5.61229,1978.5,1978.4,1.0113]
[1742589090488,1.01129,1978.5,1978.4,1.0113]
[1742589090683,4.22529,1978.5,1978.4,1.0113]
[1742589090887,1.0113,1978.4,1978.3,2.3913]
[1742589091487,2.3966,1978.4,1978.3,2.3913]
[1742589092694,5.6044,1978.4,1978.3,1.38]
[1742589094692,1.01145,1978.1,1978.0,5.872]
[1742589094992,1.01155,1978.0,1977.9,2.3801]
[1742589095187,1.01155,1978.0,1977.9,2.38015]
[1742589095385,1.01155,1978.0,1977.9,1.3686]
[1742589095786,4.21935,1978.0,1977.9,1.3686]
[1742589095987,5.54915,1978.0,1977.9,2.7656]
[1742589096389,2.34135,1978.0,1977.9,3.77715]
[1742589097205,2.34135,1978.0,1977.9,2.7656]
[1742589097994,2.34135,1978.0,1977.9,3.77715]
[1742589098394,1.01155,1978.0,1977.9,3.77715]
[1742589102901,5.53859,1978.1,1978.0,1.0115]
[1742589103097,4.22549,1978.1,1978.0,2.4235]
[1742589106401,5.62359,1978.1,1978.0,2.4235]
[1742589109695,3.214,1978.1,1978.0,2.4235]
[1742589109895,4.22545,1978.1,1978.0,2.4235]
[1742589112703,6.44183847,1978.1,1978.0,1.412]
[1742589113000,7.73453847,1978.1,1978.0,1.412]
[1742589113694,8.66607914,1978.1,1978.0,1.412]
[1742589116807,1.01155,1977.9,1977.8,0.00759763]
[1742589117008,4.22555,1977.9,1977.8,1.42409763]
[1742589117314,5.14561857,1977.9,1977.8,1.42409763]
[1742589117508,5.58575,1977.9,1977.8,1.42409763]
[1742589117901,6.50570635,1977.9,1977.8,1.42409763]
[1742589118700,7.43717598,1977.9,1977.8,1.42409763]
[1742589119316,6.50570635,1977.9,1977.8,1.42409763]
[1742589120718,5.58575,1977.9,1977.8,1.42409763]
[1742589122618,5.58575,1977.9,1977.8,2.43569763]
[1742589122824,5.58575,1977.9,1977.8,1.42409763]
[1742589123117,5.58575,1977.9,1977.8,2.43569763]
[1742589123519,5.58575,1977.9,1977.8,1.42409763]
[1742589130031,5.73656,1978.0,1977.9,1.01155]
[1742589130032,7.43334,1978.0,1977.9,1.01155]
[1742589130230,4.22554,1978.0,1977.9,0.6701]
[1742589130533,4.22554,1978.0,1977.9,1.3586]
[1742589130831,5.56034,1978.0,1977.9,2.6624]
[1742589133433,5.56034,1978.0,1977.9,3.67395]
[1742589133734,5.56034,1978.0,1977.9,2.6624]
[1742589135336,5.56034,1978.0,1977.9,3.67395]
[1742589136531,5.56034,1978.0,1977.9,1.9739]
[1742589137041,5.56034,1978.0,1977.9,1.3038]
[1742589137228,1.01166,1977.7,1977.6,0.6658]
[1742589137428,1.01176,1977.5,1977.4,11.83441613]
[1742589137633,7.43356,1977.5,1977.4,11.83441613]
[1742589137836,10.66398264,1977.5,1977.4,11.83441613]
[1742589139438,1.01181,1977.4,1977.3,0.00759763]
[1742589139635,2.4691901,1977.4,1977.3,0.00759763]
[1742589140133,2.38541,1977.4,1977.3,0.00759763]
[1742589140338,2.46918763,1977.4,1977.3,0.00759763]
[1742589143233,2.38541,1977.4,1977.3,0.00759763]
[1742589143640,4.22681,1977.4,1977.3,0.00759763]
[1742589143836,4.22681,1977.4,1977.3,1.41619763]
[1742589144740,5.63881,1977.4,1977.3,1.41619763]
[1742589148847,5.72258718,1977.4,1977.3,1.41619763]
[1742589149150,5.80636643,1977.4,1977.3,1.41619763]
[1742589150542,5.80636696,1977.4,1977.3,1.41619763]
[1742589152147,5.80636968,1977.4,1977.3,1.41619763]
[1742589152344,1.01191,1977.2,1977.1,0.6507]
[1742589152542,7.43471,1977.2,1977.1,1.3289]
[1742589152851,1.01206,1976.9,1976.8,0.6701]
[1742589153044,4.21986,1976.9,1976.8,1.3249]
[1742589153450,5.56666,1976.9,1976.8,1.3249]
[1742589155045,1.01206,1976.9,1976.8,2.33702]
[1742589155350,4.22705,1977.0,1976.9,1.01206]
[1742589155752,1.01205,1977.0,1976.9,1.01206]
[1742589155950,1.01205,1977.0,1976.9,2.36766]
[1742589156448,1.01205,1977.0,1976.9,1.3556]
[1742589157846,1.01205,1977.0,1976.9,2.36766]
[1742589158952,7.43478,1977.2,1977.1,1.01196]
[1742589159151,1.01196,1977.1,1977.0,2.3245]
[1742589159552,1.01196,1977.1,1977.0,1.3125]
[1742589160553,4.21976,1977.1,1977.0,1.3125]
[1742589161045,1.01196,1977.1,1977.0,1.3125]
[1742589162155,4.21976,1977.1,1977.0,1.3125]
[1742589162450,1.01196,1977.1,1977.0,1.3125]
[1742589166059,2.33826,1977.1,1977.0,1.3125]
[1742589169364,5.54606,1977.1,1977.0,1.3125]
[1742589169557,1.01196,1977.1,1977.0,2.32451]
[1742589172765,5.57156,1977.2,1977.1,1.01196]
[1742589172966,2.61339718,1977.4,1977.2,1.01191]
[1742589172967,1.0119,1977.3,1977.2,1.01191]
[1742589173165,1.09561718,1977.4,1977.3,1.01186]
[1742589173369,0.08377718,1977.4,1977.3,2.35576]
[1742589173963,1.09558718,1977.4,1977.3,2.35576]
[1742589178576,0.08377718,1977.4,1977.3,2.35576]
[1742589188180,1.41197718,1977.4,1977.3,2.35576]
[1742589196375,2.42378718,1977.4,1977.3,2.35576]
[1742589196582,1.41197718,1977.4,1977.3,2.35576]
[1742589197576,1.01186,1977.3,1977.2,5.872]
[1742589197775,1.64966,1977.3,1977.2,5.872]
[1742589198085,3.04976,1977.3,1977.2,5.872]
[1742589199488,3.04976,1977.3,1977.2,6.88391]
[1742589201187,1.01191,1977.2,1977.1,2.36682]
[1742589201485,6.16621,1977.2,1977.1,2.36682]
[1742589204790,6.16621,1977.2,1977.1,1.3549]
[1742589214490,9.37401,1977.2,1977.1,1.3549]
[1742589217692,1.01201,1977.0,1976.9,1.3191]
[1742589218991,2.33401,1977.0,1976.9,1.3191]
[1742589219193,2.33401,1977.0,1976.9,2.33116]
[1742589220996,2.33401,1977.0,1976.9,3.72666]
[1742589239415,1.01198,1977.1,1977.0,3.542]
[1742589239617,4.21975,1977.2,1977.1,1.01196]
[1742589239812,7.43375,1977.2,1977.1,2.30696]
[1742589240009,8.80685,1977.2,1977.1,2.30696]
[1742589241216,8.80685,1977.2,1977.1,1.295]
[1742589241417,9.47655,1977.2,1977.1,1.295]
[1742589242320,9.47655,1977.2,1977.1,2.30696]
[1742589246124,9.47655,1977.2,1977.1,1.295]
[1742589247916,1.01212,1976.8,1976.7,12.52081376]
[1742589248120,4.22612,1976.8,1976.7,11.84201376]
[1742589248322,57.21188444,1976.8,1976.7,11.84201376]
[1742589248621,58.14543667,1976.8,1976.7,11.84201376]
[1742589248921,58.54221834,1976.8,1976.7,11.84201376]
[1742589249424,58.54222693,1976.8,1976.7,11.84201376]
[1742589250722,58.14544526,1976.8,1976.7,11.84201376]
[1742589251026,58.14544526,1976.8,1976.7,0.00759763]
[1742589251526,58.14544368,1976.8,1976.7,0.00759763]
[1742589254426,57.21189145,1976.8,1976.7,0.00759763]
[1742589255127,60.41969145,1976.8,1976.7,0.00759763]
[1742589256229,60.41969161,1976.8,1976.7,0.00759763]
[1742589257632,60.3358751,1976.8,1976.7,0.00759763]
[1742589257829,60.41969161,1976.8,1976.7,0.00759763]
[1742589259329,60.41969197,1976.8,1976.7,0.00759763]
[1742589259930,57.91969197,1976.8,1976.7,0.00759763]
[1742589260933,57.91969135,1976.8,1976.7,0.00759763]
[1742589264133,57.91969348,1976.8,1976.7,0.00759763]
[1742589264331,57.91969348,1976.8,1976.7,7.63e-06]
[1742589264529,60.41969348,1976.8,1976.7,7.63e-06]
[1742589264723,61.34878832,1976.8,1976.7,7.63e-06]
[1742589265830,58.84878832,1976.8,1976.7,7.63e-06]
[1742589266736,57.91969348,1976.8,1976.7,1.30100763]
[1742589267135,57.8358751,1976.8,1976.7,1.30100763]
[1742589267341,57.91968838,1976.8,1976.7,1.30100763]
[1742589267538,54.01368838,1976.8,1976.7,1.30100763]
[1742589267845,57.22868838,1976.8,1976.7,1.30100763]
[1742589269533,56.53298838,1976.8,1976.7,1.30100763]
[1742589271443,56.53298623,1976.8,1976.7,1.30100763]
[1742589271644,1.01258,1976.0,1975.8,3.2078]
[1742589271844,1.01258,1976.0,1975.9,1.67965]
[1742589272042,3.215,1976.3,1976.0,2.53132]
[1742589272236,1.01245,1976.2,1976.1,1.01243]
[1742589272437,4.22741,1976.3,1976.2,1.01242]
[1742589273134,4.22737,1976.3,1976.2,1.71202]
[1742589274747,4.22737,1976.3,1976.2,2.0676]
[1742589275046,4.22737,1976.3,1976.2,3.08002]
[1742589278949,3.215,1976.3,1976.2,3.08002]
[1742589279149,4.22737,1976.3,1976.2,3.08002]
[1742589280641,1.01237,1976.3,1976.2,3.08002]
[1742589287751,0.00759763,1976.4,1976.3,1.01237]
[1742589287953,0.00759763,1976.4,1976.3,2.29527]
[1742589288351,7.43498,1976.7,1976.6,1.01222]
[1742589288759,8.83518,1976.7,1976.6,1.01222]
[1742589289156,8.83518,1976.7,1976.6,2.30942]
[1742589290258,8.83518,1976.7,1976.6,1.2972]
[1742589291056,8.83518,1976.7,1976.6,2.30942]
[1742589292160,8.83518,1976.7,1976.6,1.2972]
[1742589295758,2.53056,1976.6,1976.4,0.6449]
[1742589295951,5.58807,1976.5,1976.4,0.6449]
[1742589296153,1.01232,1976.4,1976.3,3.00324]
[1742589296353,2.38032,1976.4,1976.3,1.314]
[1742589296760,1.01237,1976.3,1976.2,0.6765]
[1742589296960,5.59537,1976.3,1976.2,0.6765]
[1742589297162,1.01242,1976.2,1976.1,11.84201376]
[1742589297361,3.04332,1976.2,1976.1,11.84201376]
[1742589297854,3.04332,1976.2,1976.1,13.19421376]
[1742589298055,3.04332,1976.2,1976.1,1.35979763]
[1742589299450,3.04332,1976.2,1976.1,0.00759763]
[1742589301361,2.38042,1976.2,1976.1,1.37109763]
[1742589301562,2.38042,1976.2,1976.1,2.02979763]
[1742589302570,2.38042,1976.2,1976.1,0.00759763]
[1742589305864,2.38042,1976.2,1976.1,1.37789763]
[1742589315672,1.368,1976.2,1976.1,2.39036763]
[1742589315873,4.92958446,1976.7,1976.4,1.01228]
[1742589316080,4.22726,1976.6,1976.5,2.99897]
[1742589316372,5.63682,1976.6,1976.5,1.9867]
[1742589316972,5.63682,1976.6,1976.5,2.6815]
[1742589317980,5.63682,1976.6,1976.5,3.69377]
[1742589318371,4.6246,1976.6,1976.5,3.69377]
[1742589319884,1.4096,1976.6,1976.5,3.69377]
[1742589320486,4.6246,1976.6,1976.5,3.69377]
[1742589321994,5.63682,1976.6,1976.5,3.69377]
[1742589324990,4.6246,1976.6,1976.5,3.69377]
[1742589325189,5.63682,1976.6,1976.5,3.69377]
[1742589326106,4.6246,1976.6,1976.5,3.69377]
[1742589327498,6.4218,1976.7,1976.6,1.01222]
[1742589327700,6.4218,1976.7,1976.6,2.28892]
[1742589329301,7.7489,1976.7,1976.6,2.28892]
[1742589329497,8.76107,1976.7,1976.6,2.28892]
[1742589333695,0.00759763,1976.8,1976.7,1.01217]
[1742589333902,1.31439763,1976.8,1976.7,1.01217]
[1742589334204,1.31439763,1976.8,1976.7,2.40897]
[1742589334994,0.00759763,1976.8,1976.7,2.40897]
[1742589335895,3.2078,1977.1,1977.0,1.01201]
[1742589336100,7.43376,1977.1,1977.0,1.01201]
[1742589337297,8.80956,1977.1,1977.0,2.39661]
[1742589337805,7.7976,1977.1,1977.0,2.39661]
[1742589338106,8.80956,1977.1,1977.0,2.39661]
[1742589340102,7.7976,1977.1,1977.0,2.39661]
[1742589341806,1.3758,1977.1,1977.0,2.39661]
[1742589342804,7.63e-06,1977.2,1977.1,1.01196]
[1742589343003,7.63e-06,1977.2,1977.1,6.20466]
[1742589343202,7.63e-06,1977.2,1977.1,8.70466]
[1742589345803,7.63e-06,1977.2,1977.1,2.99066]
[1742589346899,1.38200763,1977.2,1977.1,2.99066]
[1742589350205,2.39391763,1977.2,1977.1,2.99066]
[1742589350905,1.38200763,1977.2,1977.1,2.99066]
[1742589353603,2.39391763,1977.2,1977.1,2.99066]
[1742589354316,1.38200763,1977.2,1977.1,2.99066]
[1742589355109,7.63e-06,1977.2,1977.1,2.99066]
[1742589355902,7.63e-06,1977.2,1977.1,6.20366]
[1742589360112,7.63e-06,1977.2,1977.1,2.99066]
[1742589360310,4.21971763,1977.2,1977.1,1.01196]
[1742589360813,5.62001763,1977.2,1977.1,1.01196]
[1742589372117,2.41221763,1977.2,1977.1,1.01196]
[1742589372412,1.40030763,1977.2,1977.1,1.70596]
[1742589376417,1.40030763,1977.2,1977.1,3.08166]
[1742589380619,3.10281763,1977.2,1977.1,3.08166]
[1742589380913,2.09090763,1977.2,1977.1,3.08166]
[1742589381309,1.40030763,1977.2,1977.1,3.08166]
[1742589381510,2.41221763,1977.2,1977.1,3.08166]
[1742589381913,1.40030763,1977.2,1977.1,3.08166]
[1742589382917,2.41221763,1977.2,1977.1,3.08166]
[1742589383118,1.40030763,1977.2,1977.1,3.08166]
[1742589384224,2.41221763,1977.2,1977.1,2.38766]
[1742589385422,5.62421763,1977.2,1977.1,1.01196]
[1742589385727,1.01196,1977.1,1977.0,1.01196]
[1742589385926,3.75496,1977.1,1977.0,1.01196]
[1742589386723,3.75496,1977.1,1977.0,2.30456]
[1742589387112,2.38576,1977.1,1977.0,2.30456]
[1742589387315,2.38576,1977.1,1977.0,3.00506]
[1742589388132,1.3738,1977.1,1977.0,3.00506]
[1742589388329,7.63e-06,1977.2,1977.0,1.9931]
[1742589388627,7.63e-06,1977.2,1977.1,5.51236]
[1742589389528,7.63e-06,1977.2,1977.1,2.30456]
[1742589392032,7.63e-06,1977.2,1977.1,5.51236]
[1742589392831,7.63e-06,1977.2,1977.1,2.30456]
[1742589397540,7.63e-06,1977.2,1977.1,5.51236]
[1742589403044,7.63e-06,1977.2,1977.1,8.01236]
[1742589405149,7.63e-06,1977.2,1977.1,8.39965952]
[1742589405649,7.63e-06,1977.2,1977.1,20.23407565]
[1742589405948,7.63e-06,1977.2,1977.1,17.73407565]
[1742589408153,48.4518,1977.9,1977.6,1.01171]
[1742589408154,1.2874,1977.7,1977.6,1.01171]
[1742589408749,1.2874,1977.7,1977.6,2.38141]
[1742589409447,1.2874,1977.7,1977.6,1.01171]
[1742589410546,1.2874,1977.7,1977.6,2.35901]
[1742589419556,1.2874,1977.7,1977.6,1.01171]
[1742589424258,1.2874,1977.7,1977.6,2.40941]
[1742589428065,3.8712,1977.9,1977.8,1.0116]
[1742589428456,3.8712,1977.9,1977.8,3.027]
[1742589431361,5.276,1977.9,1977.8,3.027]
[1742589431966,4.6158,1977.9,1977.8,3.027]
[1742589433364,0.6803,1978.1,1978.0,1.0115]
[1742589433567,3.8913,1978.1,1978.0,1.0115]
[1742589433867,0.6927,1978.2,1978.1,1.01145]
[1742589433868,3.9037,1978.2,1978.1,1.01145]
[1742589434072,0.6927,1978.2,1978.1,1.01145]
[1742589434270,2.52787,1978.7,1978.1,3.2078]
[1742589434564,2.38738,1978.5,1978.4,1.01124]
[1742589434767,2.38738,1978.5,1978.4,2.41914]
[1742589434964,0.7075,1978.5,1978.4,2.41914]
[1742589435161,3.9185,1978.5,1978.4,2.41914]
[1742589435561,1.67978,1978.7,1978.6,1.01119]
[1742589435772,3.8796,1978.7,1978.6,1.01119]